{"text_format":"1","workbook":"xlsx","n_sheets":2,"sheets":["Issue Sheet","DATA"],"not_rendered":{"charts":0,"images":1,"macros":0,"external_links":0,"defined_names":1,"comments":0,"pivot_tables":0},"unopened":[],"bounds":{"document_bytes":16777216,"sheet_cells":100000,"rows_first":2000,"rows_last":500,"rows_between":2000,"halvings":0,"cell_chars":16384,"cell_head_chars":4096},"cells_cut":0,"cells_raw":0,"read":"whole","date_system":"1900"}

{"sheet":"Issue Sheet","index":0,"n_rows":120,"n_cols":51,"rows_kept":120,"cut":false,"hidden":false,"merged":[[13,2,13,4],[8,0,8,1],[8,2,8,4],[9,2,9,4],[10,2,10,4],[11,2,11,4],[9,0,13,1],[2,3,2,8],[3,10,5,10],[12,2,12,4],[3,4,3,8],[4,4,4,8],[5,4,5,8]]}
[]
["Issue Sheet"]
[null,null,null,"Legend"]
["PROJECT NAME","PLON01",null,"Input","Text or numeric input"]
["PROJECT NUMBER","W.004759",null,"Input","Drop-down selection input"]
["DOCUMENT REFERENCE","PLON01-RED-XX-XX-IM-Z-00001",null,"Locked","Locked cell value"]
["DOCUMENT TITLE","Master Document Issue Register"]
[]
["OFFICE",null,"DATE",null,null,"2026-04-26"]
["LONDON I 100 New Oxford Street, London WC1A 1HB, UK I +44 20 7299 8260  I london@red-eng.com",null,"NAME OF PACKAGE ",null,null,"TRS-RED-PRO-00001"]
[null,null,"LINK TO PACKAGE"]
[null,null,"NO. OF DOCUMENTS IN PACKAGE",null,null,{"$f":"COUNTA(F17:F965)","v":76},{"$f":"COUNTA(G17:G965)","v":0},{"$f":"COUNTA(H17:H965)","v":0},{"$f":"COUNTA(I17:I965)","v":0},{"$f":"COUNTA(J17:J965)","v":0},{"$f":"COUNTA(K17:K965)","v":0},{"$f":"COUNTA(L17:L965)","v":0},{"$f":"COUNTA(M17:M965)","v":0},{"$f":"COUNTA(N17:N965)","v":0},{"$f":"COUNTA(O17:O965)","v":0},{"$f":"COUNTA(P17:P965)","v":0},{"$f":"COUNTA(Q17:Q965)","v":0},{"$f":"COUNTA(R17:R965)","v":0},{"$f":"COUNTA(S17:S965)","v":0},{"$f":"COUNTA(T17:T965)","v":0},{"$f":"COUNTA(U17:U965)","v":0},{"$f":"COUNTA(V17:V965)","v":0},{"$f":"COUNTA(W17:W965)","v":0},{"$f":"COUNTA(X17:X965)","v":0},{"$f":"COUNTA(Y17:Y965)","v":0},{"$f":"COUNTA(Z17:Z965)","v":0},{"$f":"COUNTA(AA17:AA965)","v":0},{"$f":"COUNTA(AB17:AB965)","v":0},{"$f":"COUNTA(AC17:AC965)","v":0},{"$f":"COUNTA(AD17:AD965)","v":0},{"$f":"COUNTA(AE17:AE965)","v":0},{"$f":"COUNTA(AF17:AF965)","v":0},{"$f":"COUNTA(AG17:AG965)","v":0},{"$f":"COUNTA(AH17:AH965)","v":0},{"$f":"COUNTA(AI17:AI965)","v":0},{"$f":"COUNTA(AJ17:AJ965)","v":0},{"$f":"COUNTA(AK17:AK965)","v":0},{"$f":"COUNTA(AL17:AL965)","v":0},{"$f":"COUNTA(AM17:AM965)","v":0},{"$f":"COUNTA(AN17:AN965)","v":0},{"$f":"COUNTA(AO17:AO965)","v":0},{"$f":"COUNTA(AP17:AP965)","v":0},{"$f":"COUNTA(AQ17:AQ965)","v":0},{"$f":"COUNTA(AR17:AR965)","v":0},{"$f":"COUNTA(AS17:AS965)","v":0},{"$f":"COUNTA(AT17:AT965)","v":0},{"$f":"COUNTA(AU17:AU965)","v":0},{"$f":"COUNTA(AV17:AV965)","v":0},{"$f":"COUNTA(AW17:AW965)","v":0},{"$f":"COUNTA(AX17:AX965)","v":0},{"$f":"COUNTA(AY17:AY965)","v":0}]
[null,null,"STAGE",null,null,"P"]
[null,null,"REASON FOR ISSUE",null,null,"S4"]
[]
["DOCUMENT NUMBER","DOCUMENT TITLE","SCALE","PAPER SIZE","REV","Column1","Column2","Column3","Column4","Column5","Column6","Column7","Column8","Column9","Column10","Column11","Column12","Column13","Column14","Column15","Column16","Column17","Column18","Column19","Column20","Column21","Column22","Column23","Column24","Column25","Column26","Column27","Column28","Column29","Column30","Column31","Column32","Column33","Column34","Column35","Column36","Column37","Column38","Column39","Column40","Column41","Column42","Column43","Column44","Column45","Column46"]
["PLON01-CWO-D1-00-DR-Q-32001","PLON01 - DC01 - Level 00 - Existing Plan","1/250","A0",{"$f":"LOOKUP(2,1/(F17:GE17<>\"\"),F17:GE17)","v":"P01"},"P01"]
["PLON01-CWO-D1-00-DR-Q-32011","PLON01 - DC01 - Level 00 - General Arrangement Plan","1/250","A0",{"$f":"LOOKUP(2,1/(F18:GE18<>\"\"),F18:GE18)","v":"P01"},"P01"]
["PLON01-CWO-D1-00-DR-Q-62001","PLON01 - DC01 - Level 00 - Deconstruction Plan","1/250","A0",{"$f":"LOOKUP(2,1/(F19:GE19<>\"\"),F19:GE19)","v":"P01"},"P01"]
["PLON01-CWO-D1-01-DR-Q-32003","PLON01 - DC01 - Level 01 - Existing Plan","1/250","A0","P01","P01"]
["PLON01-CWO-D1-01-DR-Q-32013","PLON01 - DC01 - Level 01 - General Arrangement Plan","1/250","A0","P01","P01"]
["PLON01-CWO-D1-02-DR-Q-32004","PLON01 - DC01 - Level 02 - Existing Plan","1/250","A0","P01","P01"]
["PLON01-CWO-D1-02-DR-Q-32014","PLON01 - DC01 - Level 02 - General Arrangement Plan","1/250","A0","P01","P01"]
["PLON01-CWO-D1-M0-DR-Q-32002","PLON01 - DC01 - Level M0 - Existing Plan","1/250","A0","P01","P01"]
["PLON01-CWO-D1-M0-DR-Q-32012","PLON01 - DC01 - Level M0 - General Arrangement Plan","1/250","A0","P01","P01"]
["PLON01-CWO-D1-RF-DR-Q-32005","PLON01 - DC01 - Level RF - Existing Plan","1/250","A0",{"$f":"LOOKUP(2,1/(F26:GE26<>\"\"),F26:GE26)","v":"P01"},"P01"]
["PLON01-CWO-D1-RF-DR-Q-32015","PLON01 - DC01 - Level RF - General Arrangement Plan","1/250","A0",{"$f":"LOOKUP(2,1/(F27:GE27<>\"\"),F27:GE27)","v":"P01"},"P01"]
["PLON01-CWO-D1-RF-DR-Q-62005","PLON01 - DC01 - Level RF - Deconstruction Plan","1/250","A0","P01","P01"]
["PLON01-CWO-D1-XX-DR-Q-42001","PLON01 - DC01 - Existing Elevations","1/250","A0","P01","P01"]
["PLON01-CWO-D1-XX-DR-Q-42005","PLON01 - DC01 - Existing Sections","1/250","A0","P01","P01"]
["PLON01-CWO-D1-XX-DR-Q-42010","PLON01 - DC01 - General Arrangement Plan - Elevations","1/250","A0","P01","P01"]
["PLON01-CWO-D1-XX-DR-Q-42020","PLON01 - DC01 - General Arrangement Plan - Sections","1/250","A0","P01","P01"]
["PLON01-CWO-D1-XX-DR-Q-62010","PLON01 - DC01 - Deconstruction - Elevations","1/250","A0","P01","P01"]
["PLON01-CWO-D2-00-DR-Q-32006","PLON01 - DC02 - Level 00 - Existing Plan","1/250","A0","P01","P01"]
["PLON01-CWO-D2-00-DR-Q-32016","PLON01 - DC02 - Level 00 - General Arrangement Plan","1/250","A0","P01","P01"]
["PLON01-CWO-D2-00-DR-Q-62002","PLON01 - DC02 - Level 00 - Deconstruction Plan","1/250","A0","P01","P01"]
["PLON01-CWO-D2-01-DR-Q-32008","PLON01 - DC02 - Level 01 - Existing Plan","1/250","A0","P01","P01"]
["PLON01-CWO-D2-01-DR-Q-32018","PLON01 - DC02 - Level 01 - General Arrangement Plan","1/250","A0","P01","P01"]
["PLON01-CWO-D2-02-DR-Q-32009","PLON01 - DC02 - Level 02 - Existing Plan","1/250","A0","P01","P01"]
["PLON01-CWO-D2-02-DR-Q-32019","PLON01 - DC02 - Level 02 - General Arrangement Plan","1/250","A0","P01","P01"]
["PLON01-CWO-D2-M0-DR-Q-32007","PLON01 - DC02 - Level M0 - Existing Plan","1/250","A0","P01","P01"]
["PLON01-CWO-D2-M0-DR-Q-32017","PLON01 - DC02 - Level M0 - General Arrangement Plan","1/250","A0","P01","P01"]
["PLON01-CWO-D2-RF-DR-Q-32010","PLON01 - DC02 - Level RF - Existing Plan","1/250","A0","P01","P01"]
["PLON01-CWO-D2-RF-DR-Q-32020","PLON01 - DC02 - Level RF - General Arrangement Plan","1/250","A0","P01","P01"]
["PLON01-CWO-D2-RF-DR-Q-62006","PLON01 - DC02 - Level RF - Deconstruction Plan","1/250","A0","P01","P01"]
["PLON01-CWO-D2-XX-DR-Q-42002","PLON01 - DC02 - Existing Elevations","1/250","A0","P01","P01"]
["PLON01-CWO-D2-XX-DR-Q-42006","PLON01 - DC02 - Existing Sections","1/250","A0","P01","P01"]
["PLON01-CWO-D2-XX-DR-Q-42011","PLON01 - DC02 - General Arrangement Plan - Elevations","1/250","A0","P01","P01"]
["PLON01-CWO-D2-XX-DR-Q-42021","PLON01 - DC02 - General Arrangement Plan - Sections","1/250","A0","P01","P01"]
["PLON01-CWO-D2-XX-DR-Q-62011","PLON01 - DC02 - Deconstruction - Elevations","1/250","A0","P01","P01"]
["PLON01-CWO-SW-ZZ-DR-Q-30000","PLON01 - Site Location Plan","1/1250","A0","P01","P01"]
["PLON01-CWO-SW-ZZ-DR-Q-30002","PLON01 - Sitewide - Deconstruction Plan","1/500","A0","P01","P01"]
["PLON01-CWO-SW-ZZ-DR-Q-30003","PLON01 - Sitewide - Proposed Site Layout","1/500","A0","P01","P01"]
["PLON01-CWO-SW-ZZ-DR-Q-30004","PLON01 - Sitewide - Proposed Fencing Plan","1/500","A0","P01","P01"]
["PLON01-CWO-SW-ZZ-DR-Q-50001","PLON01 - Details - Ancillary Buildings","NTS","A0","P01","P01"]
["PLON01-CWO-SW-ZZ-DR-Q-50002","PLON01 - Details - Bike Shed","NTS","A0","P01","P01"]
["PLON01-CWO-SW-ZZ-SH-Q-10001","PLON01 - Materials and Finishes Schedule","NTS","A2","P01","P01"]
["PLON01-FCP-XX-XX-RP-N-00002","PLON01 - Arboricultural - Assessment","NTS","A4",{"$f":"LOOKUP(2,1/(F58:GE58<>\"\"),F58:GE58)","v":"P03"},"P03"]
["PLON01-FCP-XX-XX-RP-N-00003","PLON01 - Ecology Appraisal","NTS","A4","P03","P03"]
["PLON01-FCP-XX-XX-RP-N-00005","PLON01 - Ecology - Biodiversity Net Gain Report","NTS","A4","P02","P02"]
["PLON01-FCP-XX-XX-RP-N-00007","PLON01 - Ecology - Bat Report","NTS","A4","P01","P01"]
["PLON01-FCP-XX-XX-RP-N-00008","PLON01 - Planning - Arboricultural Method Statement ","NTS","A4","P01","P01"]
["PLON01-JGP-XX-XX-RP-Y-00002","PLON01 - Fire Statement","NTS","A4","P01","P01"]
["PLON01-MFA-SW-XX-DR-L-01700","PLON01 - Proposed Landscape Planting Schedule - Sheet 1 of 3","NTS","A1","P01","P01"]
["PLON01-MFA-SW-XX-DR-L-01701","PLON01 - Proposed Landscape Planting Schedule - Sheet 2 of 3","NTS","A1","P01","P01"]
["PLON01-MFA-SW-XX-DR-L-01702","PLON01 - Proposed Landscape Planting Schedule - Sheet 3 of 3","NTS","A1","P01","P01"]
["PLON01-MFA-SW-XX-DR-L-03700","PLON01 - Proposed Landscape General Arrangement Plan","1/500","A1","P03","P03"]
["PLON01-MFA-SW-XX-DR-L-03701","PLON01 - Proposed Landscape Strategy","1/500","A1","P03","P03"]
["PLON01-MFA-SW-XX-DR-L-03702","PLON01 - Landscape Habitats Plan","1/500","A1","P03","P03"]
["PLON01-MFA-SW-XX-DR-L-03706","PLON01 - Proposed Tree Protection Plan and Tracking","1/500","A1","P02","P02"]
["PLON01-MFA-SW-XX-DR-L-03707","PLON01 - Proposed Landscape Planting Plan ","1/500","A1","P02","P02"]
["PLON01-MFA-SW-XX-DR-L-03708","PLON01 - Existing Green Infrastructure to be Removed/Replaced","1/500","A1","P02","P02"]
["PLON01-MFA-SW-XX-DR-L-03710","PLON01 - Proposed DC01 Unit 01 Amenity Area","1/100","A1","P03","P03"]
["PLON01-MFA-SW-XX-DR-L-03712","PLON01 - Landscape - Typical Details","1/20","A1","P01","P01"]
["PLON01-MFA-SW-XX-DR-L-03713","PLON01 - Urban Greening Factor","1/500","A1","P03","P03"]
["PLON01-MFA-SW-XX-DR-L-03714","PLON01 - Proposed Tree Protection Plan and Utilities","1/500","A1","P01","P01"]
["PLON01-MFA-SW-XX-DR-L-05700","PLON01 - Landscape - Proposed Illustrative Sections - Sheet 1 of 2","1/100","A1","P02","P02"]
["PLON01-MFA-SW-XX-DR-L-05701","PLON01 - Landscape - Proposed Illustrative Sections - Sheet 2 of 2","1/100","A1","P02","P02"]
["PLON01-MFA-SW-XX-RP-L-00701","PLON01 - Landscape Statement","NTS","A3","P07","P07"]
["PLON01-MFA-SW-XX-RP-L-00703","PLON01 - Landscape Maintenance and Management Plan","NTS","A4","P01","P01"]
["PLON01-PIN-XX-XX-RP-Q-00001","PLON01 - Current Site Remediation and Ground Conditions","NTS","A4","P01","P01"]
["PLON01-PIN-XX-XX-RP-Q-00002","PLON01 - Flood Risk Assessment and Drainage Strategy Report","NTS","A4","P03","P03"]
["PLON01-PRO-XX-XX-RP-Q-00001","PLON01 - Framework Construction Logistics Plan","NTS","A4","P03","P03"]
["PLON01-RED-XX-XX-RP-E-00001","PLON01 - External Lighting Assessment","NTS","A4","P02","P02"]
["PLON01-RED-XX-XX-RP-Q-00001","PLON01 - Utility and Infrastructure Statement","NTS","A4","P03","P03"]
["PLON01-RED-XX-XX-RP-Q-00002","PLON01 - Delivery, Services and Waste Management Plan","NTS","A4","P02","P02"]
["PLON01-RED-XX-XX-RP-Q-00003","PLON01 - Circular Economy Statement ","NTS","A4","P02","P02"]
["PLON01-RED-XX-XX-RP-Q-00005","PLON01 - Energy, Overheating and Sustainability Statement","NTS","A4","P03","P03"]
["PLON01-RED-XX-XX-RP-Q-00006","PLON01 - Whole Life Carbon Assessment ","NTS","A4",{"$f":"LOOKUP(2,1/(F89:GE89<>\"\"),F89:GE89)","v":"P02"},"P02"]
["PLON01-SRM-SW-XX-RP-N-00002","PLON01 - Planning Noise Assessment","NTS","A4","RevE","RevE"]
["PLON01-TPA-XX-XX-RP-Q-00001","PLON01 - Transport Statement","NTS","A4","P01","P01"]
["PLON01-TPA-XX-XX-RP-Q-00002","PLON01 - Framework Travel Plan","NTS","A4","P01","P01"]
[null,null,null,null,{"$error":"#N/A"}]
[null,null,null,null,{"$error":"#N/A"}]
[null,null,null,null,{"$error":"#N/A"}]
[null,null,null,null,{"$error":"#N/A"}]
[null,null,null,null,{"$error":"#N/A"}]
[null,null,null,null,{"$error":"#N/A"}]
[null,null,null,null,{"$error":"#N/A"}]
[null,null,null,null,{"$error":"#N/A"}]
[null,null,null,null,{"$error":"#N/A"}]
[null,null,null,null,{"$error":"#N/A"}]
[null,null,null,null,{"$error":"#N/A"}]
[null,null,null,null,{"$error":"#N/A"}]
[null,null,null,null,{"$error":"#N/A"}]
[null,null,null,null,{"$error":"#N/A"}]
[null,null,null,null,{"$error":"#N/A"}]
[null,null,null,null,{"$error":"#N/A"}]
[null,null,null,null,{"$error":"#N/A"}]
[null,null,null,null,{"$error":"#N/A"}]
[null,null,null,null,{"$error":"#N/A"}]
[null,null,null,null,{"$error":"#N/A"}]
[null,null,null,null,{"$error":"#N/A"}]
[null,null,null,null,{"$error":"#N/A"}]
[null,null,null,null,{"$error":"#N/A"}]
[null,null,null,null,{"$error":"#N/A"}]
[null,null,null,null,{"$error":"#N/A"}]
[null,null,null,null,{"$f":"LOOKUP(2,1/(F118:GE118<>\"\"),F118:GE118)","v":{"$error":"#N/A"}}]
[null,null,null,null,{"$error":"#N/A"}]
[null,null,null,null,{"$error":"#N/A"}]

{"sheet":"DATA","index":1,"n_rows":11,"n_cols":4,"rows_kept":11,"cut":false,"hidden":false,"merged":[]}
["SCALE","PAPER SIZE",null,"RED Office Address"]
[null,"A0",null,"LONDON I 100 New Oxford Street, London WC1A 1HB, UK I +44 20 7299 8260  I london@red-eng.com"]
[null,"A1",null,"OXFORD I  1 Lower Farm Barns, Bainton Road, Bucknell, Bicester, OX27 7LT, UK I +44 1869 355 600 I oxford@red-eng.com"]
[null,"A2",null,"NEWCASTLE I Maling Exchange, Hoults Yard, Walker Road, Newcastle upon Tyne, NE6 2HL, UK I +44 191 500 3140 I newcastle@red-eng.com"]
[null,"A3",null,"DUBAI I RED Group Services DWC-LLC, The One TowerOffice 3205, 32nd Floor, Barsha Heights, Sheikh Zayed Road / P.O. Box 33842, Dubai, United Arab Emirates I +971 4 450 3873 I dubai@red-eng.com"]
[null,"A4",null,"ISTANBUL I Ali Sami Yen Sokak, Orman Blok, No 3-A, Ofis 18, Gayrettepe 34394, Istanbul, Turkey I +90 212 211 9914 I istanbul@red-eng.com"]
[null,"A5",null,"DUBLIN I Callaghan Engineering, Wentworth House, 19-20 Hogan Place, Lower Grand Canal Street, Dublin 2, Ireland, D02 X248 I +353 1 661 4420 I mail@calleng.ie"]
[null,"N/A",null,"CORK I Callaghan Engineering, Block H,Bldg 6500, Avenue 6000, Cork Airport Business Park,Cork, Ireland, T12 TE8P I +353 21 242 8685 I mail@calleng.ie"]
[null,null,null,"SINGAPORE I Red (a trading brand of ENGIE Impact Pte Ltd), 3 Anson Road, #17-03 Springleaf Tower, Singapore 079909 I +65 6226 3106 I singapore@red-eng.com"]
[null,null,null,"MANILA I Red Asia Inc, 26th Flr. GT Tower Int., 6813 Ayala Ave. cor. H.V., Dela Costa St. Salcedo Village, Makati City, Philippines I +63 2 7950 90 16/7 I manila@red-eng.com"]
[null,null,null,"HONG KONG I RED (a trading brand of ENGIE Impact Pte Ltd) 66th Floor, The Center, 99 Queen’s Road Central, Hong Kong  I +852 3960 6511 I hongkong@red-eng.com"]